[Event "23rd ETCC Women 2021"]
[Site "Catez"]
[Date "2021.11.20"]
[Round "8.52"]
[White "Manova, Ivana"]
[Black "Vujnovic, Patricija"]
[Result "0-1"]
[ECO "B13"]
[WhiteElo "1809"]
[BlackElo "2151"]
[Annotator "NA"]
[PlyCount "102"]
[EventDate "2021.11.08"]
[EventType "team-tourn"]
[EventCountry "SLO"]
[SourceTitle "playchess.com"]
[Source "ChessBase"]
[SourceQuality "1"]
[WhiteTeam "Macedonia"]
[BlackTeam "Croatia"]
[WhiteTeamCountry "MKD"]
[BlackTeamCountry "CRO"]
[TimeControl "40/5400+30:1800+30"]

1. e4 {[%emt 0:00:09]} c6 {[%emt 0:00:05]} 2. d4 {[%emt 0:00:11]} d5 {[%emt 0:
00:06]} 3. exd5 {[%emt 0:00:17]} cxd5 {[%emt 0:00:10]} 4. Bd3 {[%emt 0:00:15]}
Nc6 {[%emt 0:00:13]} 5. c3 {[%emt 0:00:05]} Nf6 {[%emt 0:00:19]} 6. Bf4 {
[%emt 0:00:42]} Bg4 {[%emt 0:00:24]} 7. Qb3 {[%emt 0:00:29]} e5 {[%emt 0:00:10]
} 8. h3 {[%emt 0:03:30]} Na5 {[%emt 0:03:52]} 9. Qc2 {[%emt 0:02:05]} exf4 {
[%emt 0:00:26]} 10. hxg4 {[%emt 0:00:34]} Nxg4 {[%emt 0:01:13]} 11. Nd2 {
[%emt 0:02:14]} Bd6 {[%emt 0:07:16]} 12. Nh3 {[%emt 0:06:52]} g6 {[%emt 0:29:
52]} 13. O-O-O {[%emt 0:01:41]} Kf8 {[%emt 0:01:33]} 14. Nf3 {[%emt 0:03:09]}
Kg7 {[%emt 0:07:38]} 15. Rde1 {[%emt 0:08:52]} Qc7 {[%emt 0:04:25]} 16. Nhg5 {
[%emt 0:03:03]} Nc6 {[%emt 0:17:28]} 17. Rh4 {[%emt 0:09:51]} Qd7 {[%emt 0:00:
28]} 18. Nxf7 {[%emt 0:33:25]} Kxf7 {[%emt 0:05:25]} 19. Bxg6+ {[%emt 0:03:16]}
hxg6 {[%emt 0:03:37]} 20. Ng5+ {[%emt 0:06:17]} Kf6 {[%emt 0:00:53]} 21. Rxh8 {
[%emt 0:01:52]} Rxh8 {[%emt 0:00:08]} 22. Re6+ {[%emt 0:00:47]} Qxe6 {[%emt 0:
00:28]} 23. Nxe6 {[%emt 0:00:06]} Kxe6 {[%emt 0:01:32]} 24. Qxg6+ {[%emt 0:00:
09]} Nf6 {[%emt 0:00:04]} 25. c4 {[%emt 0:00:59]} Ne7 {[%emt 0:02:01]} 26.
cxd5+ {[%emt 0:01:25]} Nexd5 {[%emt 0:00:02]} 27. Qg7 {[%emt 0:01:16]} Rh7 {
[%emt 0:03:06]} 28. Qg6 {[%emt 0:00:51]} Rc7+ {[%emt 0:01:38]} 29. Kd2 {
[%emt 0:00:15]} Rc4 {[%emt 0:01:14]} 30. Kd3 {[%emt 0:00:41]} b5 {[%emt 0:00:
28]} 31. g4 {[%emt 0:00:51]} fxg3 {[%emt 0:03:06]} 32. fxg3 {[%emt 0:00:11]}
Rc8 {[%emt 0:01:01]} 33. Qg7 {[%emt 0:00:45]} Rg8 {[%emt 0:02:18]} 34. Qxa7 {
[%emt 0:00:30]} Rxg3+ {[%emt 0:00:05]} 35. Kc2 {[%emt 0:00:47]} Nb4+ {[%emt 0:
01:33]} 36. Kd1 {[%emt 0:00:37]} Rg1+ {[%emt 0:00:19]} 37. Ke2 {[%emt 0:00:48]}
Rg2+ {[%emt 0:00:08]} 38. Kf3 {[%emt 0:00:31]} Rxb2 {[%emt 0:00:24]} 39. Qb7 {
[%emt 0:00:23]} Nbd5 {[%emt 0:02:09]} 40. Qc8+ {[%emt 0:00:43]} Kf7 {[%emt 0:
00:25]} 41. Qc6 {[%emt 0:32:26]} Be7 {[%emt 0:03:07]} 42. Kg3 {[%emt 0:00:00]}
b4 {[%emt 0:00:19]} 43. Qc4 {[%emt 0:00:00]} Kg7 {[%emt 0:06:48]} 44. Kh4 {
[%emt 0:00:00]} Rg2 {[%emt 0:02:33]} 45. Qc1 {[%emt 0:00:00]} Nh5+ {[%emt 0:15:
12]} 46. Kxh5 {[%emt 0:00:00]} Rg5+ {[%emt 0:00:10]} 47. Qxg5+ {[%emt 0:00:00]}
Bxg5 {[%emt 0:00:02]} 48. Kxg5 {[%emt 0:00:00]} Nc3 {[%emt 0:00:07]} 49. Kf4 {
[%emt 0:00:00]} Nxa2 {[%emt 0:00:07]} 50. Ke4 {[%emt 0:00:00]} Nc3+ {[%emt 0:
00:26]} 51. Kd3 {[%emt 0:00:00]} Nd5 {[%emt 0:00:28]} 0-1

[Event "23rd ETCC Women 2021"]
[Site "Catez"]
[Date "2021.11.21"]
[Round "8.53"]
[White "Goossens, Hanne"]
[Black "Ptacnikova, Lenka"]
[Result "1-0"]
[ECO "B03"]
[WhiteElo "2126"]
[BlackElo "2200"]
[Annotator "ChessBase"]
[PlyCount "133"]
[EventDate "2021.11.08"]
[EventType "team-tourn"]
[EventCountry "SLO"]
[SourceTitle "playchess.com"]
[Source "ChessBase"]
[SourceQuality "1"]
[WhiteTeam "Belgium"]
[BlackTeam "Iceland"]
[WhiteTeamCountry "BEL"]
[BlackTeamCountry "ISL"]
[TimeControl "40/5400+30:1800+30"]

1. e4 Nf6 2. e5 Nd5 3. d4 d6 4. c4 Nb6 5. exd6 exd6 6. Nc3 Be7 {[%emt 0:01:39]}
7. Be3 {[%emt 0:00:02]} O-O {[%emt 0:02:07]} 8. Nf3 {[%emt 0:11:43]} Re8 {
[%emt 0:04:45]} 9. b3 {[%emt 0:03:09]} Nc6 {[%emt 0:02:59]} 10. Be2 {[%emt 0:
01:23]} Bf5 {[%emt 0:02:28]} 11. Rc1 {[%emt 0:01:37]} a5 {[%emt 0:02:15]} 12.
d5 {[%emt 0:10:49]} Nb4 {[%emt 0:00:26]} 13. a3 {[%emt 0:02:02]} Na6 {[%emt 0:
00:14]} 14. O-O {[%emt 0:02:10]} Bf6 {[%emt 0:03:40]} 15. Nd4 {[%emt 0:06:05]}
Bd7 {[%emt 0:00:10]} 16. Bd3 {[%emt 0:04:11]} Nc5 {[%emt 0:12:06]} 17. Bc2 {
[%emt 0:03:30]} g6 {[%emt 0:00:36]} 18. Qf3 {[%emt 0:06:16]} a4 {[%emt 0:03:43]
} 19. b4 {[%emt 0:02:34]} Nb3 {[%emt 0:03:58]} 20. Bxb3 {[%emt 0:05:09]} axb3 {
[%emt 0:00:00]} 21. Ne4 {[%emt 0:02:19]} Rxe4 {[%emt 0:12:35]} 22. Qxe4 {
[%emt 0:01:02]} b2 {[%emt 0:00:29]} 23. Rc2 {[%emt 0:15:04]} Rxa3 {[%emt 0:03:
54]} 24. Rxb2 {[%emt 0:03:08]} Bf5 {[%emt 0:01:07]} 25. Qf4 {[%emt 0:07:26]}
Be5 {[%emt 0:00:30]} 26. Qh6 {[%emt 0:00:54]} Bg7 {[%emt 0:01:37]} 27. Qf4 {
[%emt 0:00:38]} Be5 {[%emt 0:11:52]} 28. Qh6 {[%emt 0:00:23]} Bg7 {[%emt 0:00:
41]} 29. Qf4 {[%emt 0:00:22]} Be5 {[%emt 0:00:08]} 30. Qh6 {[%emt 0:00:09]}
Nxc4 {[%emt 0:08:14]} 31. Rb3 {[%emt 0:04:59]} Rxb3 {[%emt 0:01:03]} 32. Nxb3 {
[%emt 0:00:09]} Be4 {[%emt 0:00:42]} 33. Rc1 {[%emt 0:04:26]} Nxe3 {[%emt 0:01:
37]} 34. Qxe3 {[%emt 0:00:25]} Bxd5 {[%emt 0:01:01]} 35. Rd1 {[%emt 0:01:53]}
c6 {[%emt 0:03:19]} 36. h3 {[%emt 0:01:54]} Qh4 {[%emt 0:01:41]} 37. Nd4 {
[%emt 0:00:48]} Kg7 {[%emt 0:02:19]} 38. b5 {[%emt 0:01:13]} Qh5 {[%emt 0:04:
16]} 39. Re1 {[%emt 0:01:15]} c5 {[%emt 0:02:50]} 40. Nf3 {[%emt 0:00:37]} Bxf3
{[%emt 0:03:51]} 41. Qxf3 {[%emt 0:30:33]} Qxf3 {[%emt 0:30:36]} 42. gxf3 {
[%emt 0:00:05]} c4 {[%emt 0:04:26]} 43. f4 {[%emt 0:00:00]} Bb2 {[%emt 0:00:00]
} 44. Re7 {[%emt 0:00:00]} b6 {[%emt 0:00:00]} 45. Kf1 {[%emt 0:00:00]} Ba3 {
[%emt 0:00:00]} 46. Ke2 {[%emt 0:00:00]} Kf6 {[%emt 0:00:00]} 47. Re4 {[%emt 0:
00:00]} d5 {[%emt 0:00:00]} 48. Re5 {[%emt 0:00:00]} d4 {[%emt 0:00:00]} 49.
Re4 {[%emt 0:00:00]} Bb2 {[%emt 0:00:00]} 50. Kd2 {[%emt 0:00:00]} h5 {[%emt 0:
00:00]} 51. Re8 {[%emt 0:00:14]} Ba3 {[%emt 0:00:13]} 52. Rc8 {[%emt 0:01:16]}
Bb4+ {[%emt 0:00:15]} 53. Kd1 {[%emt 0:00:23]} Bc3 {[%emt 0:04:12]} 54. Rxc4 {
[%emt 0:00:36]} Kf5 {[%emt 0:00:07]} 55. Ke2 {[%emt 0:01:45]} Kxf4 {[%emt 0:01:
11]} 56. Rc6 {[%emt 0:00:12]} Ba5 {[%emt 0:00:27]} 57. Rf6+ {[%emt 0:00:12]}
Kg5 {[%emt 0:00:28]} 58. Rxf7 {[%emt 0:00:10]} Kh4 {[%emt 0:00:19]} 59. Rf3 {
[%emt 0:00:44]} g5 {[%emt 0:00:15]} 60. Kd3 {[%emt 0:00:34]} Bc3 {[%emt 0:00:
42]} 61. Ke4 {[%emt 0:00:45]} g4 {[%emt 0:00:21]} 62. hxg4 {[%emt 0:00:31]}
hxg4 {[%emt 0:00:28]} 63. Rf6 {[%emt 0:00:53]} d3 {[%emt 0:01:00]} 64. Rxb6 {
[%emt 0:00:12]} d2 {[%emt 0:01:16]} 65. Rd6 {[%emt 0:00:06]} Ba5 {[%emt 0:00:
22]} 66. Ke3 {[%emt 0:00:43]} Kh3 {[%emt 0:00:54]} 67. Rxd2 {[%emt 0:01:11]}
1-0

[Event "23rd ETCC Women 2021"]
[Site "Catez"]
[Date "2021.11.21"]
[Round "8.54"]
[White "Thorsteinsdottir, Hallgerdur"]
[Black "Barbier, Wiebke"]
[Result "1-0"]
[ECO "C41"]
[WhiteElo "2010"]
[BlackElo "1964"]
[Annotator "ChessBase"]
[PlyCount "129"]
[EventDate "2021.11.08"]
[EventType "team-tourn"]
[EventCountry "SLO"]
[SourceTitle "playchess.com"]
[Source "ChessBase"]
[SourceQuality "1"]
[WhiteTeam "Iceland"]
[BlackTeam "Belgium"]
[WhiteTeamCountry "ISL"]
[BlackTeamCountry "BEL"]
[TimeControl "40/5400+30:1800+30"]

1. e4 d6 2. d4 Nf6 3. Nc3 e5 4. Nf3 Nbd7 5. Bc4 Be7 6. O-O O-O 7. a4 c6 {
[%emt 0:40:27]} 8. Re1 {[%emt 0:02:08]} exd4 {[%emt 0:00:00]} 9. Nxd4 {[%emt 0:
01:20]} Ne5 {[%emt 0:00:00]} 10. Bf1 {[%emt 0:05:10]} Re8 {[%emt 0:00:00]} 11.
a5 {[%emt 0:02:04]} Qc7 {[%emt 0:00:00]} 12. h3 {[%emt 0:06:34]} Bd7 {[%emt 0:
00:00]} 13. Be3 {[%emt 0:13:36]} b5 {[%emt 0:00:00]} 14. axb6 {[%emt 0:02:27]}
axb6 {[%emt 0:00:00]} 15. f4 {[%emt 0:03:51]} Ng6 {[%emt 0:00:00]} 16. Qf3 {
[%emt 0:06:23]} b5 {[%emt 0:22:15]} 17. g4 {[%emt 0:26:43]} Rxa1 {[%emt 0:00:
00]} 18. Rxa1 {[%emt 0:00:05]} b4 {[%emt 0:00:00]} 19. Nce2 {[%emt 0:01:34]} c5
{[%emt 0:00:00]} 20. Nf5 {[%emt 0:01:42]} Bf8 {[%emt 0:00:00]} 21. Neg3 {
[%emt 0:01:11]} Bc6 {[%emt 0:00:00]} 22. Bd3 {[%emt 0:09:48]} c4 {[%emt 0:03:
42]} 23. Bxc4 {[%emt 0:02:50]} Nxe4 {[%emt 0:00:08]} 24. Ra7 {[%emt 0:00:34]}
Qc8 {[%emt 0:18:45]} 25. Bxf7+ {[%emt 0:00:49]} Kh8 {[%emt 0:00:04]} 26. Bxe8 {
[%emt 0:00:40]} Qxe8 {[%emt 0:00:57]} 27. Nd4 {[%emt 0:07:18]} Bd5 {[%emt 0:04:
36]} 28. Nxe4 {[%emt 0:00:06]} Nh4 {[%emt 0:03:33]} 29. Qg3 {[%emt 0:00:57]}
Qxe4 {[%emt 0:00:46]} 30. Kf2 {[%emt 0:01:50]} Ng6 {[%emt 0:07:18]} 31. Rc7 {
[%emt 0:00:05]} Kg8 {[%emt 0:00:44]} 32. Nf5 {[%emt 0:00:37]} b3 {[%emt 0:00:
43]} 33. cxb3 {[%emt 0:00:41]} Qd3 {[%emt 0:00:55]} 34. h4 {[%emt 0:02:37]}
Qxb3 {[%emt 0:01:09]} 35. Bd4 {[%emt 0:00:28]} Qd1 {[%emt 0:00:33]} 36. Be3 {
[%emt 0:00:51]} Qb3 {[%emt 0:00:19]} 37. h5 {[%emt 0:01:41]} Qxb2+ {[%emt 0:00:
13]} 38. Kg1 {[%emt 0:00:31]} Nh8 {[%emt 0:00:47]} 39. Ne7+ {[%emt 0:01:30]}
Bxe7 {[%emt 0:00:04]} 40. Rxe7 {[%emt 0:00:08]} Kf8 {[%emt 0:01:07]} 41. Rc7 {
[%emt 0:31:32]} Qb8 {[%emt 0:06:04]} 42. Rc1 {[%emt 0:00:00]} Nf7 {[%emt 0:04:
08]} 43. g5 {[%emt 0:00:00]} Qe8 {[%emt 0:06:52]} 44. Kf2 {[%emt 0:00:00]} Qe4
{[%emt 0:04:00]} 45. Rc8+ {[%emt 0:00:00]} Ke7 {[%emt 0:00:15]} 46. g6 {
[%emt 0:00:00]} hxg6 {[%emt 0:04:02]} 47. hxg6 {[%emt 0:00:00]} Nh6 {[%emt 0:
01:54]} 48. Rc7+ {[%emt 0:00:00]} Ke8 {[%emt 0:04:41]} 49. Qh3 {[%emt 0:00:00]}
Be6 {[%emt 0:00:52]} 50. Qg3 {[%emt 0:00:00]} Nf5 {[%emt 0:01:34]} 51. Qh3 {
[%emt 0:00:00]} Nh6 {[%emt 0:00:07]} 52. Qf3 {[%emt 0:00:07]} Qxf3+ {[%emt 0:
01:41]} 53. Kxf3 {[%emt 0:00:05]} Nf5 {[%emt 0:00:25]} 54. Ke4 {[%emt 0:00:56]}
Ng3+ {[%emt 0:00:16]} 55. Kd4 {[%emt 0:00:26]} Nf5+ {[%emt 0:00:19]} 56. Kd3 {
[%emt 0:00:28]} d5 {[%emt 0:00:42]} 57. Bd4 {[%emt 0:00:33]} Ne7 {[%emt 0:00:
43]} 58. Bxg7 {[%emt 0:01:01]} Nxg6 {[%emt 0:00:11]} 59. Be5 {[%emt 0:00:59]}
Bf5+ {[%emt 0:00:21]} 60. Kd4 {[%emt 0:00:27]} Be4 {[%emt 0:00:04]} 61. Kc5 {
[%emt 0:01:01]} Ne7 {[%emt 0:00:35]} 62. Kd6 {[%emt 0:00:23]} Nf5+ {[%emt 0:00:
09]} 63. Ke6 {[%emt 0:00:17]} Kd8 {[%emt 0:01:16]} 64. Rb7 {[%emt 0:00:21]} d4
{[%emt 0:01:31]} 65. Rb8# {[%emt 0:00:07]} 1-0

[Event "23rd ETCC Women 2021"]
[Site "Catez"]
[Date "2021.11.21"]
[Round "8.55"]
[White "Vanduyfhuys, Daria"]
[Black "Acevedo Mendez, Lisseth"]
[Result "0-1"]
[ECO "E15"]
[WhiteElo "1933"]
[BlackElo "1803"]
[Annotator "ChessBase"]
[PlyCount "58"]
[EventDate "2021.11.08"]
[EventType "team-tourn"]
[EventCountry "SLO"]
[SourceTitle "playchess.com"]
[Source "ChessBase"]
[SourceQuality "1"]
[WhiteTeam "Belgium"]
[BlackTeam "Iceland"]
[WhiteTeamCountry "BEL"]
[BlackTeamCountry "ISL"]
[TimeControl "40/5400+30:1800+30"]

1. d4 Nf6 2. c4 e6 3. Nf3 b6 4. g3 Ba6 5. b3 d5 6. Bg2 {[%emt 0:06:03]} Nbd7 {
[%emt 0:18:34]} 7. O-O Bd6 {[%emt 0:00:00]} 8. Bb2 {[%emt 0:01:39]} O-O {
[%emt 0:00:00]} 9. Nbd2 {[%emt 0:06:04]} Rc8 {[%emt 0:00:00]} 10. Ne5 {[%emt 0:
02:21]} c5 {[%emt 0:01:16]} 11. cxd5 {[%emt 0:06:16]} exd5 {[%emt 0:02:18]} 12.
Bh3 {[%emt 0:03:09]} Rc7 {[%emt 0:09:34]} 13. Ndf3 {[%emt 0:00:44]} Re8 {
[%emt 0:10:46]} 14. Re1 {[%emt 0:02:38]} cxd4 {[%emt 0:10:36]} 15. Nxd7 {
[%emt 0:00:25]} Nxd7 {[%emt 0:00:14]} 16. Qxd4 {[%emt 0:02:22]} Nf6 {[%emt 0:
00:14]} 17. Bf5 {[%emt 0:11:26]} h6 {[%emt 0:09:32]} 18. Qa4 {[%emt 0:01:14]}
Rxe2 {[%emt 0:13:42]} 19. Bxf6 {[%emt 0:06:26]} Qxf6 {[%emt 0:00:36]} 20. Nd4 {
[%emt 0:00:15]} Rxe1+ {[%emt 0:02:35]} 21. Rxe1 {[%emt 0:00:05]} g6 {[%emt 0:
00:05]} 22. Ne6 {[%emt 0:18:37]} Re7 {[%emt 0:05:21]} 23. Qxa6 {[%emt 0:03:52]}
Qxf5 {[%emt 0:00:39]} 24. Qc8+ {[%emt 0:01:44]} Kh7 {[%emt 0:00:04]} 25. Nf8+ {
[%emt 0:07:02]} Kg7 {[%emt 0:00:23]} 26. Qc3+ {[%emt 0:05:39]} Be5 {[%emt 0:00:
35]} 27. Qb4 {[%emt 0:00:47]} Kxf8 {[%emt 0:00:30]} 28. f4 {[%emt 0:06:02]} Bf6
{[%emt 0:00:10]} 29. Qd6 {[%emt 0:00:36]} Qd7 {[%emt 0:02:26]} 0-1

[Event "23rd ETCC Women 2021"]
[Site "Catez"]
[Date "2021.11.21"]
[Round "8.56"]
[White "Hauksdottir, Hrund"]
[Black "Barbier, Astrid"]
[Result "1/2-1/2"]
[ECO "C50"]
[WhiteElo "1731"]
[BlackElo "1915"]
[Annotator "ChessBase"]
[PlyCount "115"]
[EventDate "2021.11.08"]
[EventType "team-tourn"]
[EventCountry "SLO"]
[SourceTitle "playchess.com"]
[Source "ChessBase"]
[SourceQuality "1"]
[WhiteTeam "Iceland"]
[BlackTeam "Belgium"]
[WhiteTeamCountry "ISL"]
[BlackTeamCountry "BEL"]
[TimeControl "40/5400+30:1800+30"]

1. e4 e5 2. Nf3 Nc6 3. Bc4 Bc5 4. O-O Nf6 5. d3 a6 6. a4 Ba7 {[%emt 0:02:50]}
7. c3 {[%emt 0:06:38]} d6 {[%emt 0:39:01]} 8. Re1 O-O {[%emt 0:02:08]} 9. h3 {
[%emt 0:02:44]} h6 {[%emt 0:00:00]} 10. Nbd2 {[%emt 0:00:41]} Re8 {[%emt 0:00:
00]} 11. Nf1 {[%emt 0:04:19]} Be6 {[%emt 0:00:00]} 12. Bxe6 {[%emt 0:11:53]}
fxe6 {[%emt 0:00:00]} 13. Be3 {[%emt 0:02:43]} Rf8 {[%emt 0:00:00]} 14. Ng3 {
[%emt 0:08:37]} Qd7 {[%emt 0:00:00]} 15. Bxa7 {[%emt 0:05:59]} Rxa7 {[%emt 0:
00:00]} 16. d4 {[%emt 0:02:46]} exd4 {[%emt 0:00:00]} 17. Nxd4 {[%emt 0:00:55]}
Raa8 {[%emt 0:22:26]} 18. Nxc6 {[%emt 0:09:49]} Qxc6 {[%emt 0:00:00]} 19. e5 {
[%emt 0:13:10]} Nd5 {[%emt 0:00:00]} 20. exd6 {[%emt 0:11:56]} Nf4 {[%emt 0:00:
00]} 21. Ne4 {[%emt 0:04:15]} Rad8 {[%emt 0:00:00]} 22. Qg4 {[%emt 0:06:37]}
cxd6 {[%emt 0:00:11]} 23. g3 {[%emt 0:02:16]} d5 {[%emt 0:03:50]} 24. Ng5 {
[%emt 0:02:58]} hxg5 {[%emt 0:05:35]} 25. gxf4 {[%emt 0:00:08]} Rxf4 {[%emt 0:
02:47]} 26. Qxe6+ {[%emt 0:00:47]} Qxe6 {[%emt 0:01:47]} 27. Rxe6 {[%emt 0:00:
06]} Rdf8 {[%emt 0:00:18]} 28. Re2 {[%emt 0:00:51]} R8f6 {[%emt 0:04:27]} 29.
Rd1 {[%emt 0:02:00]} g4 {[%emt 0:01:29]} 30. hxg4 {[%emt 0:01:18]} Rxg4+ {
[%emt 0:00:19]} 31. Kf1 {[%emt 0:00:05]} Rh6 {[%emt 0:04:56]} 32. Re7 {[%emt 0:
00:48]} b6 {[%emt 0:04:44]} 33. Rxd5 {[%emt 0:01:24]} Rxa4 {[%emt 0:00:19]} 34.
Rdd7 {[%emt 0:00:39]} Rg4 {[%emt 0:00:51]} 35. Ra7 {[%emt 0:00:28]} a5 {
[%emt 0:00:12]} 36. Re8+ {[%emt 0:00:28]} Kh7 {[%emt 0:00:11]} 37. Rd7 {
[%emt 0:00:34]} Rh1+ {[%emt 0:00:48]} 38. Ke2 {[%emt 0:00:11]} Rb1 {[%emt 0:01:
29]} 39. Rd2 {[%emt 0:00:20]} Rgg1 {[%emt 0:01:45]} 40. Rb8 {[%emt 0:00:35]}
Rbe1+ {[%emt 0:00:59]} 41. Kd3 {[%emt 0:03:57]} Re6 {[%emt 0:01:26]} 42. Kc4 {
[%emt 0:05:25]} Rg5 {[%emt 0:01:53]} 43. Rd3 {[%emt 0:06:24]} Rc5+ {[%emt 0:03:
59]} 44. Kb3 {[%emt 0:00:21]} Rb5+ {[%emt 0:00:29]} 45. Ka3 {[%emt 0:00:39]} g5
{[%emt 0:05:04]} 46. Rbd8 {[%emt 0:03:02]} Kg7 {[%emt 0:04:19]} 47. R3d6 {
[%emt 0:02:03]} Kf6 {[%emt 0:03:30]} 48. Rf8+ {[%emt 0:02:33]} Ke7 {[%emt 0:03:
33]} 49. Rxe6+ {[%emt 0:00:05]} Kxe6 {[%emt 0:00:04]} 50. Rg8 {[%emt 0:01:59]}
Kd6 {[%emt 0:02:14]} 51. Rg6+ {[%emt 0:01:00]} Kc7 {[%emt 0:00:13]} 52. Rf6 {
[%emt 0:02:15]} Kb7 {[%emt 0:03:10]} 53. f4 {[%emt 0:01:27]} gxf4 {[%emt 0:00:
29]} 54. Rxf4 {[%emt 0:00:07]} Ka6 {[%emt 0:00:27]} 55. b3 {[%emt 0:00:48]} Re5
{[%emt 0:00:39]} 56. c4 {[%emt 0:00:45]} Re3 {[%emt 0:01:40]} 57. Rf5 {[%emt 0:
01:03]} Rh3 {[%emt 0:01:12]} 58. Rg5 {[%emt 0:00:25]} 1/2-1/2

[Event "23rd ETCC Women 2021"]
[Site "Catez"]
[Date "2021.11.21"]
[Round "8.57"]
[White "Dolzhikova, Olga"]
[Black "Toma, Katarzyna"]
[Result "0-1"]
[ECO "B22"]
[WhiteElo "2187"]
[BlackElo "2261"]
[Annotator "ChessBase"]
[PlyCount "76"]
[EventDate "2021.11.08"]
[EventType "team-tourn"]
[EventCountry "SLO"]
[SourceTitle "playchess.com"]
[Source "ChessBase"]
[SourceQuality "1"]
[WhiteTeam "Norway"]
[BlackTeam "England"]
[WhiteTeamCountry "NOR"]
[BlackTeamCountry "ENG"]
[TimeControl "40/5400+30:1800+30"]

1. e4 c5 2. c3 {[%emt 0:02:57]} Nf6 {[%emt 0:00:20]} 3. e5 {[%emt 0:00:00]} Nd5
{[%emt 0:00:06]} 4. d4 {[%emt 0:00:00]} cxd4 {[%emt 0:00:12]} 5. Nf3 {[%emt 0:
00:00]} e6 {[%emt 0:01:01]} 6. cxd4 {[%emt 0:03:37]} d6 {[%emt 0:00:26]} 7. Bc4
{[%emt 0:01:32]} Nc6 {[%emt 0:00:57]} 8. O-O {[%emt 0:01:16]} Be7 {[%emt 0:00:
50]} 9. Qe2 {[%emt 0:11:12]} O-O {[%emt 0:00:13]} 10. Qe4 {[%emt 0:00:00]} Bd7
{[%emt 0:20:43]} 11. Bd3 {[%emt 0:00:00]} f5 {[%emt 0:08:55]} 12. exf6 {
[%emt 0:00:00]} Nxf6 {[%emt 0:00:06]} 13. Qe2 {[%emt 0:00:00]} Qa5 {[%emt 0:08:
45]} 14. Bd2 {[%emt 0:17:06]} Qh5 {[%emt 0:01:06]} 15. Bc3 {[%emt 0:00:45]} Nd5
{[%emt 0:14:42]} 16. Nfd2 {[%emt 0:15:49]} Qh6 {[%emt 0:00:00]} 17. g3 {
[%emt 0:03:09]} Bf6 {[%emt 0:00:00]} 18. Nb3 {[%emt 0:02:16]} Kh8 {[%emt 0:07:
16]} 19. N1d2 {[%emt 0:10:36]} e5 {[%emt 0:03:37]} 20. Ne4 {[%emt 0:05:32]}
exd4 {[%emt 0:09:26]} 21. Bd2 {[%emt 0:01:19]} Qh3 {[%emt 0:01:08]} 22. f4 {
[%emt 0:13:07]} Rae8 {[%emt 0:04:26]} 23. Qg2 {[%emt 0:04:03]} Qh5 {[%emt 0:06:
51]} 24. Rfe1 {[%emt 0:03:16]} Be7 {[%emt 0:05:14]} 25. Qf2 {[%emt 0:01:21]}
Ndb4 {[%emt 0:03:48]} 26. Bb1 {[%emt 0:02:35]} d3 {[%emt 0:01:34]} 27. Be3 {
[%emt 0:01:06]} Bf5 {[%emt 0:00:27]} 28. Ned2 {[%emt 0:00:47]} Bf6 {[%emt 0:00:
19]} 29. Nc4 {[%emt 0:00:31]} Rd8 {[%emt 0:00:59]} 30. Nd4 {[%emt 0:00:48]}
Nxd4 {[%emt 0:01:07]} 31. Bxd4 {[%emt 0:00:03]} Bxd4 {[%emt 0:00:14]} 32. Qxd4
{[%emt 0:00:01]} Rde8 {[%emt 0:00:13]} 33. Bxd3 {[%emt 0:01:33]} Nxd3 {[%emt 0:
00:33]} 34. Re3 {[%emt 0:00:37]} Rxe3 {[%emt 0:00:19]} 35. Nxe3 {[%emt 0:00:05]
} Qe2 {[%emt 0:01:19]} 36. Rd1 {[%emt 0:00:49]} Qf2+ {[%emt 0:00:13]} 37. Kh1 {
[%emt 0:00:03]} Qf3+ {[%emt 0:00:09]} 38. Kg1 {[%emt 0:00:03]} Nf2 {[%emt 0:00:
26]} 0-1

[Event "23rd ETCC Women 2021"]
[Site "Catez"]
[Date "2021.11.21"]
[Round "8.58"]
[White "Emelianova, Maria"]
[Black "Machlik, Monika"]
[Result "0-1"]
[ECO "B18"]
[WhiteElo "2113"]
[BlackElo "2096"]
[Annotator "ChessBase"]
[PlyCount "82"]
[EventDate "2021.11.08"]
[EventType "team-tourn"]
[EventCountry "SLO"]
[SourceTitle "playchess.com"]
[Source "ChessBase"]
[SourceQuality "1"]
[WhiteTeam "England"]
[BlackTeam "Norway"]
[WhiteTeamCountry "ENG"]
[BlackTeamCountry "NOR"]
[TimeControl "40/5400+30:1800+30"]

1. e4 c6 2. d4 d5 3. Nd2 dxe4 4. Nxe4 {[%emt 0:01:33]} Bf5 {[%emt 0:00:41]} 5.
Ng3 {[%emt 0:00:00]} Bg6 {[%emt 0:00:04]} 6. h4 {[%emt 0:00:00]} h6 {[%emt 0:
00:12]} 7. f4 e6 {[%emt 0:00:26]} 8. Nf3 {[%emt 0:00:00]} Be7 {[%emt 0:21:00]}
9. h5 {[%emt 0:02:37]} Bh7 {[%emt 0:00:05]} 10. Bd3 {[%emt 0:00:03]} Bxd3 {
[%emt 0:04:31]} 11. Qxd3 {[%emt 0:00:06]} Qc7 {[%emt 0:04:04]} 12. Bd2 Nd7 {
[%emt 0:02:40]} 13. O-O-O {[%emt 0:06:37]} O-O-O {[%emt 0:11:22]} 14. Ne5 {
[%emt 0:11:42]} Nxe5 {[%emt 0:13:18]} 15. fxe5 {[%emt 0:00:15]} c5 {[%emt 0:15:
30]} 16. Qf3 {[%emt 0:18:55]} cxd4 {[%emt 0:00:00]} 17. Qxf7 {[%emt 0:11:38]}
Qxe5 {[%emt 0:00:00]} 18. Rh3 {[%emt 0:20:13]} Qd5 {[%emt 0:06:21]} 19. Kb1 {
[%emt 0:01:30]} Bf6 {[%emt 0:00:35]} 20. Bb4 {[%emt 0:06:10]} Rd7 {[%emt 0:04:
24]} 21. Qe8+ {[%emt 0:01:33]} Rd8 {[%emt 0:00:07]} 22. Qf7 {[%emt 0:00:52]}
Qd7 {[%emt 0:01:04]} 23. Qxd7+ {[%emt 0:01:35]} Rxd7 {[%emt 0:00:20]} 24. Ne4 {
[%emt 0:00:19]} b6 {[%emt 0:06:24]} 25. Rg3 {[%emt 0:01:45]} Be5 {[%emt 0:01:
30]} 26. Rg6 {[%emt 0:02:58]} Nf6 {[%emt 0:00:08]} 27. Re1 {[%emt 0:01:40]} Re8
{[%emt 0:02:56]} 28. g4 {[%emt 0:04:55]} Nd5 {[%emt 0:02:44]} 29. Bd2 {[%emt 0:
01:52]} Bf4 {[%emt 0:00:30]} 30. g5 {[%emt 0:03:15]} Bxd2 {[%emt 0:01:29]} 31.
Nxd2 {[%emt 0:00:02]} Nf4 {[%emt 0:00:26]} 32. gxh6 {[%emt 0:00:55]} Nxg6 {
[%emt 0:00:10]} 33. hxg6 {[%emt 0:00:06]} gxh6 {[%emt 0:00:23]} 34. Nc4 {
[%emt 0:01:39]} e5 {[%emt 0:01:27]} 35. Rh1 {[%emt 0:00:55]} b5 {[%emt 0:00:35]
} 36. Nd2 {[%emt 0:00:38]} e4 {[%emt 0:01:06]} 37. Rxh6 {[%emt 0:00:56]} e3 {
[%emt 0:00:22]} 38. Nf3 {[%emt 0:00:26]} Rf8 {[%emt 0:00:39]} 39. Rh3 {[%emt 0:
01:33]} e2 {[%emt 0:00:20]} 40. Kc1 {[%emt 0:00:19]} Rxf3 {[%emt 0:00:49]} 41.
Rh8+ {[%emt 0:30:02]} Rd8 {[%emt 0:30:57]} 0-1